fUSD/lending_fUSD_20251113
["ID","MTS","AMOUNT","RATE_DAILY","PERIOD"]
[393894854,1763075833921,500.0,0.00041042,120]
[393894855,1763075834368,151.0,0.00041042,120]
[393894856,1763075834577,500.0,0.00041042,120]
[393894857,1763075834865,250.0,0.00041042,120]
[393894858,1763075834984,151.0,0.00041042,120]
[393894859,1763075835194,500.0,0.00041042,120]
[393894860,1763075835239,181.99890048,0.00041042,120]
[393894862,1763075835488,250.0,0.00041042,120]
[393894863,1763075835637,151.0,0.00041042,120]
[393894864,1763075835811,500.0,0.00041042,120]
[393894865,1763075836118,250.0,0.00041042,120]
[393894866,1763075836261,151.0,0.00041042,120]
[393894867,1763075836450,500.0,0.00041042,120]
[393894868,1763075836774,250.0,0.00041042,120]
[393894869,1763075836871,151.0,0.00041042,120]
[393894870,1763075837086,500.0,0.00041042,120]
[393894871,1763075837397,250.0,0.00041042,120]
[393894872,1763075837515,151.0,0.00041042,120]
[393894873,1763075837738,500.0,0.00041042,120]
[393894874,1763075838158,151.0,0.00041042,120]
[393894875,1763075838379,500.0,0.00041042,120]
[393894876,1763075838768,151.0,0.00041042,120]
[393894877,1763075839043,500.0,0.00041042,120]
[393894878,1763075839395,151.0,0.00041042,120]
[393894879,1763075839732,500.0,0.00041042,120]
[393894880,1763075840202,151.0,0.00041042,120]
[393894885,1763075846202,500.0,0.00041042,120]
[393894886,1763075846808,500.0,0.00041042,120]
[393894887,1763075847431,500.0,0.00041042,120]
[393894888,1763075848019,500.0,0.00041042,120]
[393894921,1763076003009,757.53,0.00016803,2]
[393894938,1763076027136,6530.873644,0.00016802,2]
[393894939,1763076027161,10000.01,0.00016802,2]
[393894940,1763076027188,4217.816356,0.00016802,2]
[393894941,1763076047590,1852.42,0.00016802,2]
[393894954,1763076112059,3929.773644,0.00016802,2]
[393894955,1763076112084,4111.486356,0.00016802,2]
[393894956,1763076127893,151.0,0.00040961,120]
[393894957,1763076128485,151.0,0.00040961,120]
[393894958,1763076129151,151.0,0.00040961,120]
[393894959,1763076130265,151.0,0.00040961,120]
[393894960,1763076130921,151.0,0.00040961,120]
[393894961,1763076131613,151.0,0.00040961,120]
[393894962,1763076132275,151.0,0.00040961,120]
[393894963,1763076132709,289.70896349,0.00040961,120]
[393894964,1763076132893,151.0,0.00040961,120]
[393894965,1763076136012,500.0,0.00040961,120]
[393894966,1763076136645,500.0,0.00040961,120]
[393894967,1763076137285,500.0,0.00040961,120]
[393894968,1763076137898,500.0,0.00040961,120]
[393894972,1763076193518,500.0,0.00029963,120]
[393894973,1763076200266,500.0,0.00027863,120]
[393894974,1763076200630,500.0,0.00029963,120]
[393894975,1763076220318,5061.06,0.00016817,2]
[393895006,1763076308388,783.78211809,0.00040962,90]
[393895010,1763076333713,-999.0,0.00017057,3]
[393895011,1763076333737,-195.0,0.0001706,2]
[393895012,1763076333761,-300.0,0.00017063,2]
[393895013,1763076333785,-317.51020244,0.00017069,2]
[393895014,1763076333808,-195.0,0.00017224,2]
[393895015,1763076333831,-177.21,0.00017449,2]
[393895016,1763076333858,-5159.0,0.00017482,2]
[393895017,1763076333880,-500.0,0.0001758,2]
[393895018,1763076333906,-5159.0,0.00017594,2]
[393895019,1763076333931,-1811.0,0.00017628,2]
[393895020,1763076333957,-187.27979756,0.00017636,2]
[393895021,1763076335139,827.463644,0.0001,2]
[393895022,1763076335165,1724.34919938,0.0001,2]
[393895024,1763076355656,177.62,0.00013501,2]
[393895049,1763076412494,5000.0,0.000162,5]
[393895057,1763076427490,1794.646695,7.945e-05,2]
[393895068,1763076469208,202.12,0.000168,2]
[393895075,1763076490590,641.04090356,0.00040962,120]
[393895097,1763076503143,729.61996631,0.00040962,120]
[393895147,1763076515905,255.37050815,0.00015,2]
[393895168,1763076519679,320.95169818,0.00040962,120]
[393895173,1763076522235,166.66,0.00015951,2]
[393895174,1763076522444,166.66,0.00016287,2]
[393895175,1763076522901,166.66,0.00016622,2]
[393895183,1763076533989,246.14834102,0.00040962,30]
[393895184,1763076534825,-166.66,0.00016958,2]
[393895284,1763076632163,-1044.08140677,0.0001699,2]
[393895285,1763076632172,-582.59253218,0.00017,2]
[393895286,1763076632205,-23369.58364014,0.00017,2]
[393895287,1763076632214,-400.0,0.000171,6]
[393895288,1763076632224,-800.0,0.000172,6]
[393895289,1763076632233,-166.66,0.00017294,2]
[393895290,1763076632243,-1300.0,0.000173,6]
[393895291,1763076632253,-300.0,0.00017313,2]
[393895292,1763076632263,-1700.0,0.000174,6]
[393895293,1763076632272,-2076.25535736,0.000175,6]
[393895294,1763076632284,-123.74464264,0.000175,6]
[393895295,1763076632293,-300.0,0.00017517,2]
[393895296,1763076632303,-400.0,0.000176,6]
[393895297,1763076632313,-166.66,0.0001763,2]
[393895298,1763076632322,-160.0,0.00017635,2]
[393895299,1763076632331,-1623.72020244,0.00017636,2]
[393895300,1763076632341,-6280.74,0.00017636,2]
[393895301,1763076632351,-9587.3,0.00017636,2]
[393895302,1763076632361,-2761.1,0.00017636,2]
[393895303,1763076632371,-1000.0,0.00017637,2]
[393895304,1763076632382,-9999.99,0.00017638,2]
[393895305,1763076632392,-7440.61,0.00017638,2]
[393895306,1763076632403,-1209.86,0.00017638,2]
[393895307,1763076632412,-150.99,0.00017638,2]
[393895308,1763076632423,-9999.99,0.00017638,2]
[393895309,1763076632433,-829.52,0.00017638,2]
[393895310,1763076632443,-1706.164194,0.00017662,2]
[393895311,1763076632453,-1811.0,0.00017684,2]
[393895312,1763076632462,-400.0,0.000177,6]
[393895313,1763076632472,-300.0,0.000177,5]
[393895314,1763076632487,-1811.0,0.00017706,2]
[393895315,1763076632496,-1811.0,0.0001773,2]
[393895316,1763076632507,-1811.0,0.00017736,2]
[393895317,1763076632516,-1811.0,0.0001776,2]
[393895318,1763076632527,-1811.0,0.00017781,2]
[393895319,1763076632536,-1811.0,0.00017788,2]
[393895320,1763076632545,-151.58108703,0.000178,2]
[393895321,1763076632556,-1659.89494981,0.000178,2]
[393895322,1763076632565,-5867.85138619,0.000178,2]
[393895323,1763076632575,-158.94270178,0.000178,2]
[393895324,1763076632584,-400.0,0.000178,6]
[393895325,1763076632594,-1659.89494974,0.00017818,2]
[393895334,1763076632837,-5867.85138613,0.00017818,2]
[393895335,1763076632847,-239.61896,0.0001782,2]
[393895336,1763076632858,-239.61896,0.0001782,2]
[393895337,1763076632868,-239.61897,0.0001782,2]
[393895338,1763076632877,-239.61897,0.0001782,2]
[393895339,1763076632888,-239.61897,0.0001782,2]
[393895340,1763076632898,-239.61897,0.0001782,2]
[393895341,1763076632908,-158.94270178,0.00017833,2]
[393895342,1763076632917,-1659.89494974,0.00017836,2]
[393895343,1763076632927,-5867.85138613,0.00017836,2]
[393895344,1763076632936,-1811.0,0.00017837,2]
[393895345,1763076632946,-1659.89494974,0.00017855,2]
[393895346,1763076632955,-5867.85138613,0.00017855,2]
[393895347,1763076632964,-200.0,0.00017856,2]
[393895348,1763076632973,-158.94270178,0.00017866,2]
[393895349,1763076632982,-151.0,0.00017867,2]
[393895350,1763076632992,-151.0,0.00017867,2]
[393895351,1763076633001,-151.0,0.00017868,2]
[393895352,1763076633010,-500.0,0.00017873,2]
[393895353,1763076633020,-500.0,0.00017873,2]
[393895354,1763076633029,-500.0,0.00017873,2]
[393895355,1763076633039,-500.0,0.00017873,2]
[393895356,1763076633048,-579.35361335,0.00017873,2]
[393895357,1763076633057,-1659.89494974,0.00017873,2]
[393895358,1763076633067,-5867.85138613,0.00017873,2]
[393895359,1763076633076,-244.06,0.0001789,2]
[393895360,1763076633085,-244.06,0.0001789,2]
[393895361,1763076633094,-244.06,0.0001789,2]
[393895362,1763076633103,-244.06,0.0001789,2]
[393895363,1763076633113,-244.06,0.0001789,2]
[393895364,1763076633123,-1659.89494974,0.00017891,2]
[393895365,1763076633132,-5867.85138613,0.00017891,2]
[393895366,1763076633141,-1811.0,0.00017897,2]
[393895367,1763076633150,-158.94270178,0.00017898,2]
[393895368,1763076633159,-500.0,0.00017899,2]
[393895369,1763076633168,-500.0,0.00017899,2]
[393895370,1763076633177,-500.0,0.00017899,2]
[393895371,1763076633185,-500.0,0.00017899,2]
[393895372,1763076633194,-500.0,0.00017899,2]
[393895373,1763076633203,-500.0,0.00017899,2]
[393895374,1763076633212,-577.11534873,0.00017899,2]
[393895375,1763076633222,-150.0,0.00017899,2]
[393895376,1763076633231,-300.0,0.00017899,4]
[393895377,1763076633240,-450.0,0.00017899,6]
[393895378,1763076633250,-500.0,0.00017899,2]
[393895379,1763076633261,-600.28142108,0.00017899,2]
[393895380,1763076633270,-500.0,0.00017899,2]
[393895381,1763076633280,-542.30660055,0.00017899,2]
[393895382,1763076633289,-500.0,0.00017899,2]
[393895383,1763076633299,-500.0,0.00017899,2]
[393895384,1763076633309,-179.54679155,0.00017899,2]
[393895385,1763076633318,-542.30660055,0.00017899,2]
[393895386,1763076633328,-500.0,0.00017899,2]
[393895387,1763076633337,-421.960617,0.00017899,2]
[393895388,1763076633347,-518.42040763,0.00017899,2]
[393895389,1763076633357,-175859.99352312,0.000179,2]
[393895390,1763076633370,-119223.26195088,0.000179,2]
[393895391,1763076633381,-44137.09768292,0.000179,2]
[393895392,1763076633411,-653.70972726,0.000179,2]
[393895393,1763076633423,-297.05507805,0.000179,2]
[393895394,1763076633459,-9432.9765155,0.000179,2]
[393895400,1763076638007,-2811.65479253,0.000179,2]
[393895401,1763076638018,-445.91491687,0.000179,2]
[393895402,1763076638043,-67138.33581287,0.000179,2]
[393895403,1763076638052,-1000.0,0.000179,2]
[393895404,1763076638062,-2500.0,0.000179,3]
[393895405,1763076638071,-33305.0021,0.000179,2]
[393895406,1763076638081,-3003.1939,0.000179,2]
[393895407,1763076638091,-400.0,0.000179,6]
[393895408,1763076638101,-2033.00515604,0.000179,2]
[393895409,1763076638110,-6098.79891156,0.000179,2]
[393895410,1763076638120,-1811.0,0.00017907,2]
[393895411,1763076638129,-5159.0,0.00017909,2]
[393895412,1763076638140,-1659.89494974,0.00017909,2]
[393895413,1763076638149,-5867.85138613,0.00017909,2]
[393895414,1763076638159,-1659.89494974,0.00017928,2]
[393895415,1763076638169,-5867.85138613,0.00017928,2]
[393895416,1763076638179,-158.94270178,0.00017931,2]
[393895417,1763076638189,-1659.89494974,0.00017946,2]
[393895418,1763076638199,-5867.85138613,0.00017946,2]
[393895419,1763076638211,-2868.836,0.00017954,2]
[393895420,1763076638221,-1659.89494974,0.00017964,2]
[393895421,1763076638231,-3563.40006652,0.00017964,2]
[393895422,1763076638252,-2304.45131961,0.00017964,2]
[393895423,1763076638261,-453.55108914,0.00017964,3]
[393895424,1763076638271,-458.11649442,0.00017964,2]
[393895425,1763076638281,-2472.56542098,0.00017964,2]
[393895426,1763076638290,-2028.98455947,0.00017964,2]
[393895427,1763076638300,-158.94270178,0.00017964,2]
[393895428,1763076638309,-875.0,0.00017973,2]
[393895429,1763076638318,-500.0,0.00017973,2]
[393895430,1763076638327,-500.0,0.00017973,2]
[393895431,1763076638336,-246.24716773,0.00017973,2]
[393895451,1763076638544,-352.74427323,0.00017973,2]
[393895453,1763076638554,-501.86872129,0.00017973,2]
[393895455,1763076638563,-150.0,0.00017976,2]
[393895457,1763076638572,-500.0,0.00017982,2]
[393895459,1763076638582,-2619.97953591,0.0001799,2]
[393895461,1763076638591,-2619.97953591,0.0001799,2]
[393895463,1763076638600,-2619.97953591,0.0001799,2]
[393895465,1763076638609,-1000.684,0.00017999,2]
[393895467,1763076638618,-600.0,0.00017999,8]
[393895469,1763076638628,-750.0,0.00017999,10]
[393895471,1763076638638,-900.0,0.00017999,12]
[393895473,1763076638648,-1079.16104617,0.00017999,14]
[393895475,1763076638657,-300.0,0.00017999,2]
[393895477,1763076638666,-300.0,0.00017999,2]
[393895479,1763076638675,-300.0,0.00017999,2]
[393895481,1763076638684,-1066.66237962,0.00017999,5]
[393895483,1763076638693,-1066.66237962,0.00017999,5]
[393895485,1763076638703,-1066.66237962,0.00017999,5]
[393895487,1763076638713,-1066.66237962,0.00017999,5]
[393895489,1763076638722,-1066.6623796,0.00017999,5]
[393895491,1763076638732,-549.07233516,0.00017999,2]
[393895493,1763076638742,-338.64228281,0.00017999,2]
[393895495,1763076638752,-500.0,0.00017999,2]
[393895497,1763076638762,-500.0,0.00017999,2]
[393895499,1763076638771,-500.0,0.00017999,2]
[393895501,1763076638781,-567.90510314,0.00017999,2]
[393895503,1763076638790,-150.0,0.00017999,2]
[393895504,1763076638800,-235.31671507,0.00017999,2]
[393895505,1763076638809,-500.0,0.00017999,2]
[393895506,1763076638819,-689946.28861543,0.00018,2]
[393895507,1763076638829,-154542.7755737,0.00018,2]
[393895508,1763076638838,-78619.6796614,0.00018,2]
[393895509,1763076638848,-9650482.65925956,0.00018,2]
[393895511,1763076638868,-324.86499999,0.00018,2]
[393895516,1763076640127,-350.115,0.00018,2]
[393895517,1763076640301,-5134.09063936,0.00018,2]
[393895518,1763076640312,-2510.995,0.00018,2]
[393895519,1763076640419,-264.20628179,0.00018,2]
[393895601,1763076646215,-13030.0,0.00018,2]
[393895616,1763076646439,-280.28700612,0.00018,2]
[393895621,1763076646484,-647980.90298104,0.00018,2]
[393895689,1763076822167,419.45497903,0.00016986,2]
[393895694,1763076845638,10000.01,0.00016849,2]
[393895695,1763076845703,185.69,0.00016849,2]
[393895701,1763076881462,150.0,0.00016723,2]
[393895702,1763076881659,150.0,0.00016723,120]
[393895738,1763076985718,1644.58,0.00016438,2]
[393895957,1763077090831,187.99,0.00030137,120]
[393895964,1763077166652,-175.82596745,0.0001694,2]
[393895965,1763077196093,808.84,0.00041028,120]
[393895966,1763077200927,150.0,0.00016496,2]
[393895968,1763077207128,204.62230614,0.00041028,120]
[393895969,1763077207862,500.0,0.00041028,120]
[393895970,1763077208342,500.0,0.00041028,120]
[393895971,1763077216259,1000.0,0.00041028,120]
[393895972,1763077220421,200.56,0.00016,2]
[393895993,1763077257642,8000.26,0.00016505,2]
[393895996,1763077277149,1297.5380651,0.00016505,2]
[393895997,1763077277207,1919.8419349,0.00016505,2]
[393895998,1763077279293,175.82596744,0.00016913,2]
[393896000,1763077295083,500.0,0.00016,10]
[393896008,1763077370807,831.74,0.00013699,2]
[393896011,1763077398229,527.022579,0.00029963,120]
[393896012,1763077421047,717.47,0.00016513,2]
[393896013,1763077454149,5855.13209766,0.00016886,2]
[393896014,1763077454216,10000.01,0.00016886,2]
[393896015,1763077454279,10000.01,0.00016886,2]
[393896016,1763077454339,7312.10680234,0.00016886,2]
[393896017,1763077507593,1899.955298,7.945e-05,2]
[393896038,1763077556632,1289.5816109,0.00041028,30]
[393896039,1763077569287,150.0,0.000162,2]
[393896040,1763077569369,150.0,0.0001638,2]
[393896041,1763077569455,150.0,0.0001656,2]
[393896042,1763077569531,150.0,0.0001674,2]
[393896043,1763077569606,150.0,0.0001692,2]
[393896044,1763077579268,37.94789966,0.00016475,2]
[393896045,1763077579349,10000.01,0.00016475,2]
[393896046,1763077579430,6161.29210034,0.00016475,2]
[393896048,1763077597329,200.0,0.00016479,2]
[393896068,1763077832439,-300.0,0.00016985,2]
[393896069,1763077832449,-1200.0,0.00016985,2]
[393896070,1763077832459,-300.0,0.00016985,2]
[393896071,1763077832468,-300.0,0.00016986,2]
[393896072,1763077832479,-18990.47011657,0.00016986,2]
[393896073,1763077832495,-71458.8949044,0.00016986,2]
[393896074,1763077832504,-300.0,0.00017007,2]
[393896075,1763077832514,-150.0,0.000171,2]
[393896077,1763077832523,-2000.0,0.000172,6]
[393896078,1763077832532,-4193.0,0.00017219,2]
[393896079,1763077832542,-150.0,0.0001728,2]
[393896080,1763077832552,-4000.0,0.000173,6]
[393896081,1763077832562,-250.0,0.00017301,2]
[393896082,1763077832572,-500.0,0.00017354,2]
[393896083,1763077832582,-176.0774614,0.00017354,2]
[393896084,1763077832591,-500.0,0.00017354,2]
[393896085,1763077832602,-500.0,0.00017354,2]
[393896086,1763077832611,-500.0,0.00017354,2]
[393896087,1763077832621,-500.0,0.00017354,2]
[393896089,1763077832631,-500.0,0.00017354,2]
[393896091,1763077832641,-196.34110094,0.00017354,2]
[393896093,1763077832650,-151.0,0.00017354,2]
[393896095,1763077832659,-9809.31417436,0.00017354,2]
[393896119,1763077838176,-190.67582564,0.00017354,2]
[393896121,1763077838187,-816.73,0.00017354,2]
[393896124,1763077838197,-3249.51,0.00017354,2]
[393896126,1763077838207,-6856.77,0.00017354,2]
[393896127,1763077838217,-9999.99,0.00017354,2]
[393896128,1763077838227,-866.82,0.00017354,2]
[393896129,1763077838236,-9999.99,0.00017354,2]
[393896130,1763077838246,-9999.99,0.00017354,2]
[393896131,1763077838255,-299.99,0.00017354,4]
[393896132,1763077838265,-166.67,0.00017355,2]
[393896133,1763077838275,-547.68,0.00017355,2]
[393896134,1763077838284,-26731.32,0.00017355,2]
[393896135,1763077838294,-9999.99,0.00017355,2]
[393896136,1763077838303,-150.99,0.00017355,2]
[393896137,1763077838312,-1428.56,0.00017355,2]
[393896138,1763077838322,-151.0,0.000174,2]
[393896139,1763077838332,-6000.0,0.000174,6]
[393896141,1763077838342,-1250.0,0.00017438,2]
[393896142,1763077838352,-473.1435872,0.00017441,2]
[393896143,1763077838361,-1068.58110081,0.00017443,2]
[393896144,1763077838371,-25201.08790018,0.00017443,2]
[393896145,1763077838380,-150.0,0.0001746,2]
[393896146,1763077838391,-189.38,0.00017479,2]
[393896147,1763077838401,-473.14358715,0.00017492,2]
[393896148,1763077838410,-324.98958508,0.00017494,2]
[393896149,1763077838426,-4693.80263862,0.00017494,2]
[393896150,1763077838446,-7995.87654929,0.00017494,2]
[393896152,1763077838457,-12186.41912717,0.00017494,2]
[393896154,1763077838466,-8000.0,0.000175,6]
[393896156,1763077838476,-1068.58110079,0.00017508,2]
[393896157,1763077838485,-447.49,0.00017518,2]
[393896159,1763077838495,-443.73507614,0.00017527,2]
[393896161,1763077838505,-500.0,0.00017527,2]
[393896163,1763077838514,-500.0,0.00017527,2]
[393896165,1763077838523,-500.0,0.00017527,2]
[393896168,1763077838533,-500.0,0.00017527,2]
[393896171,1763077838542,-500.0,0.00017527,2]
[393896173,1763077838552,-447.49,0.00017528,2]
[393896175,1763077838562,-447.49,0.00017528,2]
[393896177,1763077838571,-447.49,0.00017528,2]
[393896179,1763077838580,-447.49,0.00017528,2]
[393896181,1763077838590,-221.0,0.00017528,2]
[393896183,1763077838600,-500.0,0.00017537,2]
[393896185,1763077838609,-500.0,0.00017537,2]
[393896187,1763077838619,-500.0,0.00017537,2]
[393896189,1763077838628,-500.0,0.00017537,2]
[393896191,1763077838638,-500.0,0.00017537,2]
[393896192,1763077838647,-500.0,0.00017537,2]
[393896194,1763077838656,-500.0,0.00017537,2]
[393896196,1763077838666,-500.0,0.00017537,2]
[393896198,1763077838675,-402.24008145,0.00017537,2]
[393896200,1763077838685,-500.0,0.00017537,2]
[393896202,1763077838694,-500.0,0.00017537,2]
[393896204,1763077838703,-420000.0,0.00017538,2]
[393896206,1763077838712,-473.14358715,0.00017543,2]
[393896208,1763077838722,-25201.08790016,0.00017545,2]
[393896210,1763077838731,-500.0,0.00017562,2]
[393896212,1763077838740,-500.0,0.00017573,2]
[393896214,1763077838749,-500.0,0.00017573,2]
[393896216,1763077838759,-500.0,0.00017573,2]
[393896218,1763077838768,-500.0,0.00017573,2]
[393896220,1763077838778,-500.0,0.00017573,2]
[393896222,1763077838787,-500.0,0.00017573,2]
[393896224,1763077838796,-500.0,0.00017573,2]
[393896225,1763077838805,-171.31783739,0.00017573,2]
[393896226,1763077838814,-501.00285995,0.00017573,2]
[393896227,1763077838824,-500.0,0.00017573,2]
[393896228,1763077838833,-500.0,0.00017573,2]
[393896229,1763077838842,-500.0,0.00017573,2]
[393896230,1763077838851,-420.52377378,0.00017573,2]
[393896231,1763077838860,-500.0,0.00017573,2]
[393896232,1763077838873,-500.0,0.00017573,2]
[393896233,1763077838883,-500.68799219,0.00017573,2]
[393896234,1763077838893,-306.53,0.00017573,2]
[393896235,1763077838904,-1068.58110079,0.00017574,2]
[393896236,1763077838915,-500.0,0.00017591,2]
[393896237,1763077838925,-500.0,0.00017591,2]
[393896238,1763077838934,-500.0,0.00017591,2]
[393896239,1763077838946,-500.0,0.00017591,2]
[393896240,1763077838955,-473.14358715,0.00017594,2]
[393896241,1763077838965,-25201.08790016,0.00017595,2]
[393896243,1763077838974,-10000.0,0.000176,6]
[393896244,1763077838984,-1068.58110079,0.00017639,2]
[393896245,1763077838993,-150.0,0.0001764,2]
[393896246,1763077839003,-473.14358715,0.00017645,2]
[393896247,1763077839012,-25201.08790016,0.00017646,2]
[393896248,1763077839022,-500.0,0.00017653,2]
[393896249,1763077839031,-500.0,0.00017653,2]
[393896250,1763077839040,-359.98361765,0.00017657,2]
[393896251,1763077839050,-473.14358715,0.00017696,2]
[393896252,1763077839060,-25201.08790016,0.00017697,2]
[393896253,1763077839070,-2000.0,0.000177,6]
[393896254,1763077839080,-1068.58110079,0.00017704,2]
[393896255,1763077839090,-1706.16419399,0.00017725,2]
[393896256,1763077839099,-151.0,0.00017745,2]
[393896257,1763077839110,-151.0,0.00017745,2]
[393896258,1763077839120,-151.0,0.00017745,2]
[393896259,1763077839129,-151.0,0.00017745,2]
[393896260,1763077839139,-473.14358715,0.00017747,2]
[393896261,1763077839149,-25201.08790016,0.00017748,2]
[393896262,1763077839159,-1068.58110079,0.00017769,2]
[393896263,1763077839168,-473.14358715,0.00017798,2]
[393896264,1763077839178,-25201.08790016,0.00017798,2]
[393896265,1763077839188,-500.0,0.00017799,2]
[393896266,1763077839198,-500.0,0.00017799,2]
[393896267,1763077839208,-483.77468973,0.00017799,2]
[393896268,1763077839218,-284.38905023,0.00017799,2]
[393896269,1763077839228,-500.0,0.00017799,2]
[393896270,1763077839238,-500.0,0.00017799,2]
[393896271,1763077839247,-500.0,0.00017799,2]
[393896272,1763077839257,-454.15014735,0.00017799,2]
[393896273,1763077839266,-500.0,0.00017799,2]
[393896274,1763077839276,-33305.0021,0.000178,2]
[393896275,1763077839285,-1000.0,0.000178,2]
[393896276,1763077839294,-2000.0,0.000178,6]
[393896277,1763077839304,-150.0,0.0001782,2]
[393896278,1763077839313,-1864.5754,0.0001782,2]
[393896279,1763077839322,-2295.069,0.00017833,2]
[393896280,1763077839332,-1068.58110079,0.00017835,2]
[393896281,1763077839341,-274.42,0.00017837,2]
[393896282,1763077839351,-306.53,0.00017847,2]
[393896283,1763077839360,-500.0,0.00017848,2]
[393896284,1763077839369,-500.0,0.00017848,2]
[393896285,1763077839379,-500.0,0.00017848,2]
[393896286,1763077839388,-507.90035275,0.00017848,2]
[393896287,1763077839398,-473.14358715,0.00017849,2]
[393896288,1763077839407,-25201.08790016,0.00017849,2]
[393896289,1763077839417,-200.0,0.00017855,2]
[393896290,1763077839427,-2250.0,0.00017855,2]
[393896291,1763077839436,-200.0,0.00017856,2]
[393896292,1763077839446,-200.0,0.00017856,2]
[393896293,1763077839455,-200.0,0.00017856,2]
[393896294,1763077839464,-200.0,0.00017856,2]
[393896295,1763077839473,-2500.0,0.00017882,3]
[393896296,1763077839483,-2500.0,0.00017891,3]
[393896297,1763077839493,-500.0,0.00017898,2]
[393896298,1763077839502,-500.0,0.00017898,2]
[393896299,1763077839511,-500.0,0.00017899,2]
[393896300,1763077839520,-430.02161934,0.00017899,2]
[393896301,1763077839530,-168.52466912,0.000179,2]
[393896302,1763077839539,-1414.75612256,0.000179,2]
[393896303,1763077839548,-2500.0,0.000179,3]
[393896304,1763077839558,-1250.0,0.000179,2]
[393896305,1763077839567,-2500.0,0.000179,3]
[393896306,1763077839576,-478.69779641,0.000179,3]
[393896307,1763077839585,-2000.0,0.000179,6]
[393896309,1763077839595,-473.14358715,0.000179,2]
[393896310,1763077839603,-521.34032885,0.000179,2]
[393896311,1763077839614,-229.05824722,0.000179,2]
[393896312,1763077839624,-1236.2827105,0.000179,2]
[393896313,1763077839633,-1068.58110079,0.000179,2]
[393896314,1763077839644,-2028.98455947,0.000179,2]
[393896315,1763077839654,-25201.08790016,0.000179,2]
[393896316,1763077839663,-226.77554458,0.000179,3]
[393896317,1763077839672,-4616.0,0.000179,2]
[393896318,1763077839681,-1864.5754,0.0001793,2]
[393896319,1763077839691,-875.0,0.00017973,2]
[393896320,1763077839700,-518.01248713,0.00017973,2]
[393896321,1763077839710,-331.20277471,0.00017973,2]
[393896322,1763077839720,-502.14268274,0.00017973,2]
[393896323,1763077839730,-502.7946782,0.00017973,2]
[393896324,1763077839739,-504.68800049,0.00017973,2]
[393896325,1763077839749,-501.0450611,0.00017973,2]
[393896326,1763077839758,-500.0,0.00017973,2]
[393896327,1763077839768,-500.0,0.00017973,2]
[393896328,1763077839777,-500.0,0.00017973,2]
[393896329,1763077839786,-500.0,0.00017973,2]
[393896330,1763077839796,-500.0,0.00017973,2]
[393896331,1763077839805,-500.0,0.00017973,2]
[393896332,1763077839815,-500.0,0.00017973,2]
[393896333,1763077839824,-503.18215431,0.00017973,2]
[393896334,1763077839833,-342.70918904,0.00017973,2]
[393896335,1763077839842,-500.0,0.00017973,2]
[393896336,1763077839851,-500.98861298,0.00017973,2]
[393896337,1763077839861,-500.0,0.00017973,2]
[393896338,1763077839872,-160.68447692,0.00017973,2]
[393896339,1763077839883,-160.13145735,0.00017973,2]
[393896340,1763077839894,-512.6477435,0.00017973,2]
[393896341,1763077839903,-363.54680066,0.00017973,2]
[393896342,1763077839913,-500.0,0.00017973,2]
[393896343,1763077839922,-535.53318786,0.00017973,2]
[393896344,1763077839931,-500.0,0.00017973,2]